bitfinex/quotes_ETHUSD_20241120
["timestamp","ask_amount","ask_price","bid_price","bid_amount"]
[1732112684889,3.20257,3122.5,3121.7,0.1498371]
[1732112685059,3.20257,3122.5,3121.7,2.3921971]
[1732112685498,3.7666269,3122.1,3121.7,0.1498371]
[1732112685819,3.20328,3121.8,3121.7,0.1498371]
[1732112686365,6.75328,3121.8,3121.7,0.1498371]
[1732112686566,3.55,3121.8,3121.7,0.1498371]
[1732112686877,6.20328,3121.8,3121.7,0.1498371]
[1732112687459,3.0,3121.9,3121.7,0.1498371]
[1732112687663,6.20319,3121.9,3121.7,0.1498371]
[1732112687889,3.0,3122.0,3121.7,0.1498371]
[1732112688203,3.20245,3122.7,3121.8,1.3297]
[1732112688423,3.20244,3122.7,3122.0,2.2421]
[1732112688575,0.11843241,3123.4,3122.0,2.2421]
[1732112688576,4.55071,3123.5,3122.7,2.24164]
[1732112688782,3.20165,3123.4,3122.7,2.24164]
[1732112689111,1.2483,3123.9,3123.1,1.2907]
[1732112689265,3.20102,3124.0,3123.3,2.24116]
[1732112689464,3.69270269,3124.0,3123.3,2.2412]
[1732112689771,3.20078,3124.3,3123.6,2.241]
[1732112689982,3.2005,3124.6,3123.8,2.24079]
[1732112690186,3.2005,3124.6,3123.2,2.27313775]
[1732112690187,1.3415,3125.3,3123.5,1.27059771]
[1732112690369,3.19971,3125.3,3124.4,2.24037]
[1732112690574,3.19992,3125.1,3124.4,2.24037]
[1732112690802,3.19969,3125.4,3124.5,2.24033]
[1732112691005,3.19969,3125.4,3124.6,1.2975]
[1732112691214,8.51594778,3125.9,3124.6,1.2975]
[1732112691215,3.19941,3125.6,3124.6,1.2975]
[1732112691367,3.1992,3125.8,3124.8,2.24011]
[1732112691573,0.43492,3125.7,3124.8,2.24011]
[1732112691820,0.43492,3125.7,3125.1,2.23992]
[1732112691984,3.19901,3126.0,3125.2,2.2398]
[1732112692313,3.19858,3126.4,3125.6,2.2395]
[1732112692497,3.19803,3127.0,3126.1,1.3371]
[1732112692705,1.3311,3127.5,3126.1,1.3371]
[1732112693025,3.19816,3126.8,3126.1,1.3371]
[1732112693326,5.49787778,3127.5,3126.1,1.3371]
[1732112693652,3.19767,3127.3,3126.5,2.2389]
[1732112693826,0.319767,3127.2,3126.5,2.2389]
[1732112694174,0.319767,3127.2,3126.1,1.3371]
[1732112694175,3.517527,3127.2,3126.4,1.59924]
[1732112694474,3.19723,3127.8,3126.9,1.59902]
[1732112694696,0.319723,3127.7,3127.0,1.3371]
[1732112694973,3.19672,3128.2,3127.0,1.3371]
[1732112695172,3.19664,3128.3,3127.5,1.59871]
[1732112695414,1.43578778,3128.9,3127.7,1.59861]
[1732112695614,3.1963,3128.7,3127.9,1.59851]
[1732112695798,3.19603,3128.9,3127.8,1.3371]
[1732112696115,4.17677778,3129.7,3127.8,1.3371]
[1732112696116,0.319603,3128.8,3127.8,1.3371]
[1732112696313,3.19619,3128.8,3127.9,1.5985]
[1732112696525,12.05541,3129.5,3128.1,1.5984]
[1732112696526,3.196,3129.0,3128.1,1.5984]
[1732112696677,3.19588,3129.1,3128.1,1.5984]
[1732112697016,12.05541,3129.5,3128.1,1.5984]
[1732112697017,3.19578,3129.2,3128.2,1.59832]
[1732112697225,3.19578,3129.2,3128.3,1.5983]
[1732112697463,0.319578,3129.1,3128.4,1.59824]
[1732112697604,3.19562,3129.3,3128.1,0.00999771]
[1732112697943,3.19553,3129.4,3128.6,2.95131]
[1732112698097,3.19562,3129.3,3128.6,2.95131]
[1732112698304,3.19542,3129.5,3128.7,1.5981]
[1732112698499,3.19542,3129.5,3128.6,1.3532]
[1732112699009,3.1952,3129.7,3128.6,1.3532]
[1732112699314,3.1952,3129.7,3128.9,1.598]
[1732112699535,3.19551,3129.4,3128.6,2.95135]
[1732112699703,0.31952,3129.6,3129.1,1.59785]
[1732112699899,3.19506,3129.9,3128.9,1.59796]
[1732112700126,3.514686,3129.8,3128.9,1.59796]
[1732112700332,3.19489,3130.0,3128.6,1.3532]
[1732112700532,3.19489,3130.0,3129.1,1.59787]
[1732112700843,3.19468,3130.2,3129.4,1.59774]
[1732112700844,3.19477,3130.2,3129.4,1.59774]
[1732112701048,0.319468,3130.1,3129.5,1.4085]
[1732112701249,0.319468,3130.1,3128.8,0.031955]
[1732112701546,0.319468,3130.1,3128.6,1.4074]
[1732112701547,3.19605,3128.9,3128.6,1.4074]
[1732112701859,3.19605,3128.9,3127.6,0.00999771]
[1732112701860,3.19539,3129.5,3127.8,1.4074]
[1732112702007,3.19661,3128.4,3127.8,1.4074]
[1732112702209,3.19684,3128.1,3127.8,1.4074]
[1732112702432,3.516614,3128.0,3127.8,1.4074]
[1732112702631,3.19744,3127.6,3127.0,1.4074]
[1732112702904,3.19664,3128.3,3127.2,1.59885]
[1732112702905,3.19693,3128.0,3127.2,1.59885]
[1732112703244,0.41667778,3128.7,3127.9,1.5985]
[1732112703452,3.19637,3128.6,3127.5,1.3675]
[1732112703750,3.19619,3128.8,3127.5,1.3675]
[1732112703955,0.55,3128.7,3127.5,1.3575]
[1732112704125,3.0,3128.5,3127.5,1.3575]
[1732112704330,0.55,3128.7,3127.5,1.3575]
[1732112704331,3.19625,3128.7,3127.5,1.36749771]
[1732112704527,3.19685,3128.1,3127.5,1.3575]
[1732112704974,3.19705,3127.9,3127.5,1.3575]
[1732112705168,3.19733,3127.6,3126.8,1.3024]
[1732112705315,0.55,3128.4,3126.8,1.3024]
[1732112705316,3.19765,3127.3,3126.8,1.3024]
[1732112705516,3.19782,3127.2,3126.8,1.3024]
[1732112705716,0.55,3127.6,3126.2,1.3024]
[1732112705917,10.2669,3127.5,3126.2,1.3024]
[1732112706156,3.19826,3126.7,3126.2,1.3024]
[1732112706357,3.19809,3126.9,3126.2,1.3024]
[1732112706560,3.55,3127.4,3126.2,1.3024]
[1732112706772,3.19854,3126.5,3126.2,1.3024]
[1732112707075,7.36441778,3127.3,3126.2,1.3024]
[1732112707076,3.19866,3126.3,3126.2,1.3024]
[1732112707555,3.19867,3126.3,3125.7,2.92371]
[1732112707761,3.19867,3126.3,3125.8,0.07312413]
[1732112708122,3.19846,3126.5,3125.8,0.07312413]
[1732112708318,3.1984,3126.6,3125.9,1.59953]
[1732112708553,3.19847,3126.5,3125.8,0.07312413]
[1732112708801,3.19847,3126.5,3125.9,0.07312179]
[1732112709278,6.1978,3127.2,3125.9,0.07312179]
[1732112709279,3.0,3127.0,3126.0,1.59948]
[1732112709477,3.19793,3127.1,3126.3,1.59933]
[1732112709707,6.817743,3127.0,3126.3,1.59933]
[1732112709908,3.19855,3126.5,3126.1,0.07311711]
[1732112710127,0.55,3126.9,3126.1,0.07311711]
[1732112710279,3.19864,3126.4,3126.1,0.07311711]
[1732112710684,3.19877,3126.2,3126.1,0.07311711]
[1732112710929,3.19883,3126.2,3125.2,2.88419]
[1732112711143,3.19905,3126.0,3125.2,2.88419]
[1732112711343,3.19882,3126.2,3125.4,1.59978]
[1732112711637,3.19875,3126.3,3125.6,1.59964]
[1732112711932,3.19844,3126.6,3125.8,1.59954]
[1732112712112,3.19864,3126.4,3125.9,1.346]
[1732112712316,3.19837,3126.6,3125.9,2.94549]
[1732112712722,3.0,3127.6,3126.0,1.59948]
[1732112713036,3.19816,3126.8,3126.2,1.59938]
[1732112713237,3.19762,3127.4,3125.9,1.346]
[1732112713538,3.19796,3127.0,3126.1,1.59939]
[1732112713753,3.517756,3127.0,3126.1,1.59939]
[1732112713885,3.19782,3127.2,3126.6,1.3229]
[1732112714086,5.05179973,3128.3,3126.6,1.3229]
[1732112714087,3.19765,3127.3,3126.6,1.3229]
[1732112714319,3.19776,3127.2,3126.6,1.3229]
[1732112714514,3.19776,3127.2,3126.6,2.92208]
[1732112714718,3.19758,3127.4,3126.8,1.59907]
[1732112714941,1.2359698,3127.8,3126.6,1.3229]
[1732112714942,3.19777,3127.2,3126.6,1.3229]
[1732112715188,3.19802,3127.0,3126.6,1.3229]
[1732112715742,3.19805,3126.9,3126.6,1.3229]
[1732112715941,3.19826,3126.7,3126.6,1.3229]
[1732112716319,3.19812,3126.9,3126.6,1.3229]
[1732112716827,3.19826,3126.7,3126.6,1.3229]
[1732112717029,3.19883,3126.2,3125.6,1.3581]
[1732112717230,3.19912,3125.9,3125.6,1.3581]
[1732112717713,3.19888,3126.1,3125.6,1.3581]
[1732112717913,3.19901,3126.0,3125.6,1.3581]
[1732112718119,3.0,3126.5,3125.6,1.3581]
[1732112718365,3.19886,3126.2,3125.6,2.95775]
[1732112718533,3.1989,3126.1,3125.6,1.3581]
[1732112718918,3.19921,3125.8,3125.6,1.3581]
[1732112719114,3.199,3126.0,3125.6,1.3581]
[1732112719455,3.19881,3126.2,3125.6,2.95774]
[1732112719650,3.19888,3126.1,3125.6,1.3581]
[1732112719852,3.19926,3125.8,3125.6,1.3581]
[1732112720440,3.19859,3126.4,3125.7,1.59959]
[1732112720634,3.19843,3126.6,3125.9,1.5995]
[1732112721019,6.396,3127.0,3125.9,0.319913]
[1732112721223,6.396,3127.0,3126.3,1.59932]
[1732112721224,3.19812,3126.9,3126.3,1.59932]
[1732112721550,3.19798,3127.0,3126.4,2.98643]
[1732112721753,3.19733,3127.6,3126.4,1.3872]
[1732112722067,3.19836,3126.6,3126.4,1.3872]
[1732112722425,3.19846,3126.5,3126.4,1.3872]
[1732112722968,3.199,3126.0,3125.9,1.3459]
[1732112723877,3.0,3126.9,3125.9,1.3459]
[1732112724163,3.19868,3126.3,3125.9,1.3459]
[1732112724317,3.19843,3126.6,3125.9,2.94543]
[1732112724512,6.39688,3126.6,3125.9,2.94543]
[1732112724757,3.19843,3126.6,3125.9,2.94543]
[1732112725125,3.19827,3126.7,3125.9,2.9454]
[1732112725369,3.19789,3127.1,3126.0,0.03198478]
[1732112725567,3.19813,3126.9,3126.3,1.5993]
[1732112725738,4.56613,3127.8,3126.1,1.59939]
[1732112725939,3.19813,3126.9,3126.2,1.76250748]
[1732112726139,3.19818,3126.8,3126.2,1.59937]
[1732112726653,3.19834,3126.7,3126.0,1.59944]
[1732112726873,0.55,3127.1,3126.0,1.59944]
[1732112727158,3.19819,3126.8,3126.1,1.59938]
[1732112727373,6.396,3127.0,3126.3,1.59933]
[1732112727574,3.19813,3126.9,3126.3,1.59933]
[1732112727773,3.19798,3127.0,3126.4,1.59924]
[1732112727958,3.19816,3126.8,3126.5,1.378]
[1732112728162,3.19821,3126.8,3126.5,1.378]
[1732112729889,0.319821,3126.8,3126.0,1.378]
[1732112730175,3.19794,3127.1,3126.0,1.378]
[1732112730384,3.74797,3127.0,3126.0,1.378]
[1732112730690,3.19853,3126.5,3126.0,1.378]
[1732112731179,3.1983,3126.7,3126.0,1.378]
[1732112731672,3.1983,3126.7,3126.2,1.59937]
[1732112731874,3.1983,3126.7,3126.0,1.40998268]
[1732112731875,3.19837,3126.6,3126.0,3.00944268]
[1732112732172,3.19837,3126.6,3126.0,1.378]
[1732112732383,3.1986,3126.4,3126.0,1.378]
[1732112732682,6.39772,3126.2,3126.0,1.378]
[1732112732874,3.19886,3126.2,3126.0,1.378]
[1732112733329,3.19878,3126.2,3126.0,1.378]
[1732112733788,3.19887,3126.1,3126.0,1.378]
[1732112734180,3.19887,3126.1,3125.6,1.3259]
[1732112734181,3.19912,3125.9,3125.6,1.3259]
[1732112734380,3.19967,3125.4,3125.2,1.3619]
[1732112734583,3.19918,3125.8,3125.2,1.3619]
[1732112734584,3.19942,3125.6,3125.2,1.3619]
[1732112734736,6.19827,3126.7,3125.2,1.37189771]
[1732112735110,6.19827,3126.7,3125.0,1.59996]
[1732112735111,3.1983,3126.7,3126.0,1.59944]
[1732112735315,3.76842188,3127.2,3125.8,2.96146]
[1732112735513,3.19811,3126.9,3126.3,1.59932]
[1732112735715,3.19774,3127.2,3126.0,1.59947]
[1732112735901,3.19835,3126.7,3126.0,1.59947]
[1732112736117,5.43507778,3127.7,3126.3,1.59932]
[1732112736423,3.19764,3127.4,3126.8,1.2889]
[1732112736573,1.2683,3128.1,3126.9,1.59902]
[1732112736909,3.1975,3127.5,3126.9,1.59901]
[1732112737124,3.1975,3127.5,3127.0,1.59897]
[1732112737300,3.19734,3127.6,3127.0,1.59897]
[1732112737612,3.19763,3127.4,3126.8,1.2889]
[1732112737816,3.19763,3127.4,3126.8,2.88796]
[1732112738035,3.19745,3127.5,3126.8,2.88796]
[1732112738316,3.19708,3127.9,3126.8,1.2889]
[1732112738513,3.19713,3127.8,3126.9,0.03196797]
[1732112738895,3.19729,3127.7,3127.1,1.5989]
[1732112739045,0.319729,3127.6,3126.8,1.2889]
[1732112739228,3.19828,3126.7,3126.1,1.59943]
[1732112739547,3.19789,3127.1,3126.3,1.59933]
[1732112739758,6.39541,3127.3,3126.5,1.59921]
[1732112740066,3.19768,3127.3,3126.7,1.59909]
[1732112740268,3.19721,3127.8,3127.2,1.59887]
[1732112740549,4.59611,3128.6,3127.4,1.59872]
[1732112740754,3.19684,3128.1,3127.4,1.59872]
[1732112740907,3.19672,3128.3,3127.7,1.59857]
[1732112741102,12.05577,3129.2,3128.1,1.3539]
[1732112741103,3.19629,3128.7,3128.1,1.3539]
[1732112741388,3.19628,3128.7,3128.1,1.3539]
[1732112741501,3.19613,3128.8,3128.2,1.59833]
[1732112742200,3.19592,3129.0,3128.2,1.59833]
[1732112742550,3.19516,3129.8,3128.2,1.59833]
[1732112742551,3.1956,3129.3,3128.2,1.59833]
[1732112742858,3.19606,3128.9,3128.3,1.5983]
[1732112743145,3.19597,3129.0,3128.3,1.5983]
[1732112743365,3.19603,3128.9,3128.1,2.95229]
[1732112743560,3.19634,3128.6,3128.1,1.3539]
[1732112743705,3.19611,3128.8,3128.1,1.3539]
[1732112743906,3.19611,3128.8,3128.2,1.59832]
[1732112744332,3.19593,3129.0,3128.2,1.59832]
[1732112744506,3.19602,3128.9,3128.3,1.59829]
[1732112745335,3.1962,3128.8,3128.1,2.9523]
[1732112745539,0.55,3129.6,3128.1,1.3539]
[1732112745752,3.19701,3128.0,3127.6,1.2881]
[1732112746111,3.19723,3127.7,3127.6,1.2881]
[1732112746351,3.19721,3127.8,3127.1,1.59891]
[1732112746561,3.19693,3128.0,3127.3,1.5988]
[1732112746769,3.19704,3127.9,3127.3,1.5988]
[1732112747057,0.55,3128.5,3127.7,1.59858]
[1732112747058,3.19646,3128.5,3127.7,1.59858]
[1732112747359,3.19624,3128.7,3128.2,1.3162]
[1732112747586,3.0,3129.4,3128.2,1.3162]
[1732112747865,3.19621,3128.7,3128.2,1.3162]
[1732112748014,3.19618,3128.8,3128.2,1.3162]
[1732112748360,3.19634,3128.6,3128.2,1.3162]
[1732112748666,3.19615,3128.8,3128.2,1.3162]
[1732112748858,3.19622,3128.7,3128.2,1.3162]
[1732112749071,3.19615,3128.8,3128.2,1.3162]
[1732112749373,3.19634,3128.6,3128.2,1.3162]
[1732112749663,3.19615,3128.8,3128.2,1.3162]
[1732112749847,3.19594,3129.0,3128.2,2.91452]
[1732112750056,3.19614,3128.8,3128.2,2.91452]
[1732112750232,3.1961,3128.9,3128.2,2.91452]
[1732112750623,3.1961,3128.9,3128.3,1.59829]
[1732112751131,3.1961,3128.9,3128.4,1.59825]
[1732112751513,3.1961,3128.9,3128.2,4.51284]
[1732112751717,3.1961,3128.9,3128.3,1.59827]
[1732112752114,3.19627,3128.7,3128.2,1.3162]
[1732112752358,6.39256,3128.7,3128.2,1.3162]
[1732112752561,0.55617778,3129.4,3128.2,1.3162]
[1732112752562,3.19605,3128.9,3128.2,1.3162]
[1732112752743,6.19593,3129.0,3128.3,1.5983]
[1732112752948,3.19606,3128.9,3128.3,1.5983]
[1732112753374,3.19606,3128.9,3128.3,3.19653]
[1732112753538,3.0,3129.0,3128.4,2.94176]
[1732112753539,3.19591,3129.0,3128.4,2.94176]
[1732112753720,0.55,3129.1,3128.4,2.94176]
[1732112753959,3.19553,3129.4,3128.6,1.59814]
[1732112754154,3.19532,3129.6,3128.8,1.59801]
[1732112754354,3.19532,3129.6,3129.1,1.2658]
[1732112754683,3.19513,3129.8,3129.1,1.2658]
[1732112754890,3.19513,3129.8,3129.2,1.59781]
[1732112755655,3.19491,3130.0,3129.2,1.8873659]
[1732112755984,3.19515,3129.8,3129.2,1.8873659]
[1732112756187,3.19515,3129.8,3129.3,1.59779]
[1732112756390,3.19515,3129.8,3129.4,0.34851559]
[1732112756587,3.19515,3129.8,3129.2,1.8873659]
[1732112758075,3.55,3130.0,3129.1,1.2658]
[1732112758298,3.7457,3129.2,3128.5,1.2658]
[1732112758611,3.19592,3129.0,3128.5,1.2658]
[1732112758826,3.1957,3129.2,3128.6,1.59815]
[1732112758987,3.1957,3129.2,3128.5,1.2658]
[1732112759326,3.1957,3129.2,3128.6,1.59812]
[1732112759467,3.55,3129.6,3128.6,1.59812]
[1732112759666,0.55,3129.3,3128.6,1.59812]
[1732112759863,3.19574,3129.2,3128.6,1.59812]
[1732112760327,3.19588,3129.1,3128.5,1.2658]
[1732112760613,3.19631,3128.6,3128.5,1.2658]
[1732112761373,0.55,3128.7,3128.5,1.2658]
[1732112761573,3.19631,3128.6,3128.5,1.2658]
[1732112762311,0.55,3128.7,3128.1,1.59841]
[1732112762611,0.55,3128.8,3128.4,1.59823]
[1732112762920,3.7462,3128.8,3128.2,1.59835]
[1732112763069,3.19597,3129.0,3128.4,1.59823]
[1732112763265,3.514827,3129.6,3128.4,1.59823]
[1732112763266,3.55,3129.2,3128.5,1.3659]
[1732112763495,3.19618,3128.8,3128.5,1.3659]
[1732112763725,3.1959,3129.1,3128.5,1.3659]
[1732112763871,3.19612,3128.8,3128.5,1.3659]
[1732112764076,3.19604,3128.9,3128.5,1.3659]
[1732112764502,0.55,3128.6,3127.9,1.3377]
[1732112764811,3.74632,3128.6,3127.9,2.61647]
[1732112765017,3.74632,3128.6,3128.1,1.27872]
[1732112765242,3.19605,3128.9,3128.1,1.31068387]
[1732112765511,3.19649,3128.5,3127.9,3.0411862]
[1732112765720,3.19649,3128.5,3128.0,1.27876]
[1732112765924,3.19604,3128.9,3128.1,1.27869]
[1732112766078,0.55,3129.2,3128.5,1.3377]
[1732112766439,3.19598,3129.0,3128.5,1.3377]
[1732112766711,3.74575,3129.2,3128.7,1.27848]
[1732112766912,0.55,3129.3,3128.5,1.3377]
[1732112767119,3.19557,3129.4,3128.8,1.2784]
[1732112767318,3.19552,3129.4,3128.8,1.2784]
[1732112767526,1.3554,3130.2,3128.6,1.2785]
[1732112767527,3.19561,3129.3,3128.6,1.2785]
[1732112767814,6.39091,3129.5,3128.8,1.27842]
[1732112768030,3.19542,3129.5,3128.9,1.27837]
[1732112768205,3.19542,3129.5,3128.8,1.27842]
[1732112768519,3.19542,3129.5,3128.8,1.27841]
[1732112768724,0.55,3129.4,3128.8,1.27841]
[1732112768888,0.55,3129.4,3128.9,1.2651]
[1732112769080,0.55,3129.4,3129.0,1.27835]
[1732112769276,3.0,3129.9,3129.0,1.27835]
[1732112769481,3.0,3129.9,3129.0,1.27836]
[1732112769482,3.19538,3129.6,3129.0,1.27836]
[1732112769683,3.0,3130.3,3128.9,1.2651]
[1732112769873,3.19582,3129.1,3128.9,1.2651]
[1732112770230,3.1959,3129.0,3128.9,1.2651]
[1732112770376,3.19606,3128.9,3128.3,1.27862]
[1732112770573,3.19611,3128.8,3128.2,2.65348]
[1732112770902,3.19576,3129.2,3128.5,1.27853]
[1732112771203,3.19605,3128.9,3128.3,1.27862]
[1732112771389,3.19585,3129.1,3128.5,1.27855]
[1732112771727,3.19585,3129.1,3128.5,1.27854]
[1732112771872,3.19585,3129.1,3128.6,1.27852]
[1732112772076,3.0,3129.2,3128.6,1.27852]
[1732112772313,0.55,3129.3,3128.8,1.387]
[1732112772514,3.74561,3129.3,3128.8,1.387]
[1732112772718,3.19581,3129.1,3128.8,1.387]
[1732112772953,3.19598,3129.0,3128.8,1.387]
[1732112773449,3.19642,3128.5,3128.4,1.42615867]
[1732112773757,3.19709,3127.9,3127.4,1.3942]
[1732112774069,0.55,3128.0,3127.0,1.3942]
[1732112774070,3.19785,3127.1,3127.0,1.3942]
[1732112774261,3.19765,3127.3,3127.0,1.3942]
[1732112774605,3.19748,3127.5,3127.0,1.3942]
[1732112774809,6.39501,3127.5,3127.0,1.3942]
[1732112775152,3.19728,3127.7,3127.0,2.67337]
[1732112775316,3.19708,3127.9,3127.2,1.27907]
[1732112775500,7.36285778,3128.9,3127.3,0.03197117]
[1732112775501,4.3026,3128.5,3127.3,0.03197117]
[1732112775700,3.19689,3128.1,3127.5,2.60907]
[1732112775949,3.19644,3128.5,3128.0,1.3301]
[1732112776166,3.19625,3128.7,3128.1,1.2787]
[1732112776318,6.39254,3128.7,3128.1,1.539588]
[1732112776687,3.19633,3128.6,3128.1,0.260888]
[1732112776822,3.19655,3128.4,3128.0,1.36206198]
[1732112777027,3.19634,3128.6,3128.0,1.3301]
[1732112777359,3.19644,3128.5,3128.0,1.3301]
[1732112777668,3.19634,3128.6,3128.0,2.60887]
[1732112777964,3.19633,3128.6,3128.1,0.388765]
[1732112778173,3.19634,3128.6,3128.0,1.3301]
[1732112778382,0.55,3129.1,3128.1,1.27869]
[1732112778536,3.19627,3128.7,3128.2,0.260879]
[1732112778866,3.19623,3128.7,3128.2,0.260879]
[1732112779031,3.19632,3128.6,3128.2,0.260879]
[1732112779484,0.55,3128.8,3128.2,0.260879]
[1732112779655,3.74619,3128.8,3128.2,0.260879]
[1732112779856,3.19624,3128.7,3128.2,0.260879]
[1732112780076,3.19624,3128.7,3128.2,1.539559]
[1732112780403,0.55,3128.8,3128.2,0.260879]
[1732112780544,3.19629,3128.7,3128.2,0.260879]
[1732112780747,3.1964,3128.6,3128.2,0.260879]
[1732112781195,3.7462,3128.8,3128.2,1.539559]
[1732112781397,3.19628,3128.7,3128.2,0.260879]
[1732112781584,3.19628,3128.7,3128.0,1.36206205]
[1732112781585,3.19649,3128.5,3128.0,1.36206205]
[1732112781892,3.19623,3128.7,3128.0,1.3301]
[1732112782190,3.19649,3128.5,3128.1,0.26408331]
[1732112782490,3.19669,3128.3,3127.7,1.3812]
[1732112782725,3.19621,3128.7,3127.7,1.647216]
[1732112782996,3.19621,3128.7,3127.1,3.0]
[1732112782997,3.19732,3127.7,3127.1,1.27913]
[1732112783294,1.3482,3128.5,3126.8,1.3812]
[1732112783295,3.19706,3127.9,3126.8,1.3812]
[1732112783494,3.19706,3127.9,3127.4,1.3296]
[1732112784006,3.19706,3127.9,3127.4,1.5636584]
[1732112784352,1.3482,3128.5,3127.4,1.5636584]
[1732112784650,0.55,3128.2,3127.7,0.95916]
[1732112785051,3.19647,3128.5,3127.8,0.95913]
[1732112785289,3.19647,3128.5,3127.9,0.191829]
[1732112785455,3.19647,3128.5,3128.0,2.26957]
[1732112785651,3.19665,3128.3,3128.0,1.3105]
[1732112785894,3.19682,3128.1,3128.0,1.3105]
[1732112786564,3.19709,3127.9,3127.5,1.2741]
[1732112786768,3.19729,3127.7,3127.5,1.2741]
[1732112786966,3.19733,3127.6,3127.5,1.2741]
[1732112787187,3.19708,3127.9,3127.5,1.2741]
[1732112787859,3.19722,3127.8,3127.5,1.2741]
[1732112788059,3.19729,3127.7,3127.5,1.2741]
[1732112788303,3.0,3128.3,3127.5,1.2741]
[1732112788453,3.19727,3127.7,3127.5,1.2741]
[1732112788656,0.55,3128.4,3127.5,1.2741]
[1732112788963,3.7466,3128.4,3127.8,0.95911]
[1732112789275,3.7466,3128.4,3127.9,0.9591]
[1732112789491,3.7466,3128.4,3127.8,0.95911]
[1732112789492,3.19663,3128.3,3127.8,0.95913]
[1732112789664,0.55,3128.5,3127.8,0.95913]
[1732112789864,0.55,3128.5,3127.9,1.3067]
[1732112790100,3.74647,3128.5,3127.9,2.2658]
[1732112790309,3.19693,3128.0,3127.9,1.3067]
[1732112790609,3.19723,3127.8,3127.1,0.95935]
[1732112790787,0.55,3128.5,3127.1,0.0319687]
[1732112790961,3.19715,3127.8,3127.1,0.9913087]
[1732112791164,3.19715,3127.8,3127.3,0.95929]
[1732112791352,3.19715,3127.8,3126.9,1.2728]
[1732112791353,3.19758,3127.4,3127.0,0.03197081]
[1732112791559,3.19758,3127.4,3126.9,1.2728]
[1732112791560,3.1978,3127.2,3126.9,1.2728]
[1732112791859,3.19795,3127.0,3126.9,1.2728]
[1732112792356,0.55,3126.9,3125.5,0.95981]
[1732112792558,3.19873,3126.3,3125.6,2.22848]
[1732112792885,3.19826,3126.7,3125.6,2.22848]
[1732112792886,3.19828,3126.7,3126.0,0.95966]
[1732112793102,3.19843,3126.6,3126.0,0.95966]
[1732112793279,3.19837,3126.6,3126.0,0.95966]
[1732112793495,3.19828,3126.7,3126.0,1.1547983]
[1732112793819,3.19867,3126.3,3125.8,0.95974]
[1732112794140,3.19856,3126.4,3125.8,1.27964]
[1732112794266,3.19837,3126.6,3125.9,1.27959]
[1732112794579,3.19866,3126.4,3125.8,1.662468]
[1732112794768,3.1987,3126.3,3125.7,0.03198442]
[1732112795128,3.1985,3126.5,3125.8,1.27966]
[1732112795264,3.19864,3126.4,3125.8,1.27966]
[1732112795776,3.19889,3126.1,3125.6,1.2687]
[1732112795990,3.7482,3126.8,3125.6,1.3006869]
[1732112795991,3.19851,3126.5,3125.6,1.3006869]
[1732112796194,6.39706,3126.5,3125.8,1.27963]
[1732112796406,3.19851,3126.5,3125.8,1.3116133]
[1732112796567,3.19856,3126.4,3125.6,1.2687]
[1732112796904,3.19918,3125.8,3125.6,1.2687]
[1732112797209,3.19879,3126.2,3125.6,1.2687]
[1732112797362,3.19842,3126.6,3125.9,1.27959]
[1732112797566,3.19849,3126.5,3125.9,1.27959]
[1732112797979,3.1982,3126.8,3126.1,1.2749]
[1732112798166,3.19841,3126.6,3126.1,1.2749]
[1732112798410,3.19859,3126.4,3126.1,1.2749]
[1732112798911,3.19869,3126.3,3126.1,1.2749]
[1732112799206,3.19904,3126.0,3125.5,1.35108547]
[1732112799408,3.19904,3126.0,3125.5,1.3191]
[1732112799798,3.19912,3125.9,3125.5,1.3191]
[1732112800002,3.19938,3125.6,3125.5,1.3191]
[1732112800298,3.19946,3125.6,3125.2,1.2964]
[1732112800618,0.55,3126.3,3125.3,0.03197624]
[1732112800816,3.19863,3126.4,3125.8,1.27964]
[1732112800973,3.19828,3126.7,3125.7,0.03198503]
[1732112801175,3.19827,3126.7,3126.1,1.2708]
[1732112801807,6.39706,3126.5,3126.1,1.2708]
[1732112802015,3.19851,3126.5,3126.1,1.2708]
[1732112802309,3.19868,3126.3,3126.1,1.2708]
[1732112802512,3.19851,3126.5,3126.1,1.2708]
[1732112802666,3.19829,3126.7,3126.1,2.55032]
[1732112802866,3.19841,3126.6,3126.1,1.2708]
[1732112803085,3.19754,3127.5,3126.2,1.2795]
[1732112803294,3.19782,3127.2,3126.1,1.30278258]
[1732112803496,3.19776,3127.2,3126.3,0.03198258]
[1732112803786,3.19738,3127.6,3126.9,2.66839]
[1732112804246,3.19668,3128.3,3127.0,1.31113513]
[1732112804526,3.19751,3127.5,3126.9,2.70037797]
[1732112804727,3.19725,3127.7,3127.0,1.27914]
[1732112804933,3.19695,3128.0,3127.1,0.03196592]
[1732112805130,3.19718,3127.8,3127.2,1.27909]
[1732112805427,3.19716,3127.8,3127.4,1.3623]
[1732112805635,3.19695,3128.0,3127.4,1.3623]
[1732112805924,3.19655,3128.4,3127.4,1.3623]
[1732112806130,3.19724,3127.7,3127.4,1.3623]
[1732112806483,3.19686,3128.1,3127.4,1.3623]
[1732112806811,3.19717,3127.8,3127.4,1.3623]
[1732112807019,3.1973,3127.7,3127.1,1.2557]
[1732112807200,3.19755,3127.4,3127.1,1.2557]
[1732112807402,3.19741,3127.6,3127.1,1.2557]
[1732112807736,3.19747,3127.5,3127.1,1.2557]
[1732112808027,3.19755,3127.4,3127.1,1.2557]